[Event "Live Chess"]
[Site "Chess.com"]
[Date "2023.05.21"]
[Round "-"]
[White "Mikhail_Golubev"]
[Black "AbilifyXL"]
[Result "1-0"]
[WhiteElo "2467"]
[BlackElo "1947"]
[TimeControl "300"]
[EndTime "1:53:42 PDT"]
[Termination "Mikhail_Golubev won by resignation"]

1. e4 {[%clk 0:04:54.6]} 1... d5 {[%clk 0:04:59.9]} 2. e5 {[%clk 0:04:52.7]}
2... c5 {[%clk 0:04:57.8]} 3. f4 {[%clk 0:04:51.3]} 3... Nc6 {[%clk 0:04:56.9]}
4. Nf3 {[%clk 0:04:50.2]} 4... Bg4 {[%clk 0:04:55.9]} 5. Be2 {[%clk 0:04:48.4]}
5... e6 {[%clk 0:04:55.1]} 6. d3 {[%clk 0:04:45.5]} 6... Nge7 {[%clk 0:04:54]}
7. c3 {[%clk 0:04:42.7]} 7... Nf5 {[%clk 0:04:53]} 8. O-O {[%clk 0:04:40.8]}
8... Be7 {[%clk 0:04:52.2]} 9. Na3 {[%clk 0:04:39.8]} 9... O-O {[%clk
0:04:50.9]} 10. Nc2 {[%clk 0:04:36.3]} 10... Rc8 {[%clk 0:04:48.4]} 11. Nfe1
{[%clk 0:04:19.5]} 11... Bxe2 {[%clk 0:04:43.5]} 12. Qxe2 {[%clk 0:04:19.4]}
12... d4 {[%clk 0:04:34.3]} 13. c4 {[%clk 0:04:15.6]} 13... a6 {[%clk
0:04:15.4]} 14. g4 {[%clk 0:04:09.3]} 14... Nh4 {[%clk 0:04:11.1]} 15. Ng2
{[%clk 0:04:01.7]} 15... Nxg2 {[%clk 0:04:07.8]} 16. Qxg2 {[%clk 0:04:01.6]}
16... b5 {[%clk 0:04:06.1]} 17. b3 {[%clk 0:04:00.5]} 17... f6 {[%clk
0:03:59.3]} 18. exf6 {[%clk 0:03:56.4]} 18... Bxf6 {[%clk 0:03:58.4]} 19. Bd2
{[%clk 0:03:54.8]} 19... e5 {[%clk 0:03:56.7]} 20. f5 {[%clk 0:03:53.7]} 20...
Bg5 {[%clk 0:03:53.6]} 21. Bxg5 {[%clk 0:03:38.2]} 21... Qxg5 {[%clk 0:03:52.4]}
22. Rae1 {[%clk 0:03:37.9]} 22... bxc4 {[%clk 0:03:43.8]} 23. bxc4 {[%clk
0:03:36.5]} 23... a5 {[%clk 0:03:10.2]} 24. Re4 {[%clk 0:03:34.1]} 24... Rb8
{[%clk 0:02:50.8]} 25. Re2 {[%clk 0:03:09.6]} 25... Rf6 {[%clk 0:02:46.5]} 26.
Ne1 {[%clk 0:03:02.1]} 26... Rb1 {[%clk 0:02:35.8]} 27. h4 {[%clk 0:02:37.5]}
27... Qxh4 {[%clk 0:02:28.9]} 28. Nf3 {[%clk 0:02:35.2]} 28... Rxf1+ {[%clk
0:02:27.2]} 29. Kxf1 {[%clk 0:02:34.3]} 29... Qh6 {[%clk 0:02:19.9]} 30. g5
{[%clk 0:02:33.2]} 1-0

[Event "Live Chess"]
[Site "Chess.com"]
[Date "2023.05.21"]
[Round "-"]
[White "TKDRyan"]
[Black "smoggyrabbit"]
[Result "0-1"]
[WhiteElo "1136"]
[BlackElo "1708"]
[TimeControl "300"]
[EndTime "1:53:56 PDT"]
[Termination "smoggyrabbit won by resignation"]

1. e4 {[%clk 0:04:58.7]} 1... e6 {[%clk 0:04:58.3]} 2. Nf3 {[%clk 0:04:56.1]}
2... d5 {[%clk 0:04:57.1]} 3. e5 {[%clk 0:04:52.2]} 3... c5 {[%clk 0:04:55.8]}
4. d4 {[%clk 0:04:51.3]} 4... Nc6 {[%clk 0:04:54.6]} 5. Be3 {[%clk 0:04:47.7]}
5... Nge7 {[%clk 0:04:37]} 6. Bb5 {[%clk 0:04:45.9]} 6... Bd7 {[%clk 0:04:35.4]}
7. dxc5 {[%clk 0:04:37.9]} 7... Nxe5 {[%clk 0:04:32.3]} 8. Nxe5 {[%clk
0:04:36.2]} 8... Bxb5 {[%clk 0:04:31.1]} 9. Nc3 {[%clk 0:04:30.4]} 9... Bd7
{[%clk 0:04:28.3]} 10. Qf3 {[%clk 0:04:20.3]} 10... f6 {[%clk 0:04:18.5]} 11.
Nxd7 {[%clk 0:03:43.1]} 11... Qxd7 {[%clk 0:04:13.9]} 12. O-O {[%clk 0:03:40.8]}
12... Nc6 {[%clk 0:04:06.5]} 13. Nb5 {[%clk 0:03:30.5]} 13... a6 {[%clk
0:03:57.7]} 14. Nd6+ {[%clk 0:03:26.2]} 14... Bxd6 {[%clk 0:03:56.1]} 15. cxd6
{[%clk 0:03:25.4]} 15... Qxd6 {[%clk 0:03:54]} 16. Bf4 {[%clk 0:03:24.2]} 16...
e5 {[%clk 0:03:46.9]} 17. Rfe1 {[%clk 0:03:23.1]} 17... O-O {[%clk 0:03:44.9]}
18. Bg3 {[%clk 0:03:10]} 18... Nd4 {[%clk 0:03:41.3]} 19. Qc3 {[%clk 0:02:52.1]}
19... Nb5 {[%clk 0:03:26.3]} 20. Qb3 {[%clk 0:02:47.9]} 20... Rac8 {[%clk
0:03:18.5]} 21. Rad1 {[%clk 0:02:45.5]} 21... Rfd8 {[%clk 0:03:11]} 22. c3
{[%clk 0:02:32.9]} 22... Kh8 {[%clk 0:02:40.6]} 23. h3 {[%clk 0:02:31]} 23...
Qc6 {[%clk 0:02:32.7]} 24. a4 {[%clk 0:02:23.2]} 24... Nc7 {[%clk 0:02:26.2]}
25. Kh1 {[%clk 0:01:55]} 25... Ne6 {[%clk 0:02:04.8]} 26. h4 {[%clk 0:01:38.5]}
26... Nc5 {[%clk 0:02:00.8]} 27. Qc2 {[%clk 0:01:35.7]} 27... Qxa4 {[%clk
0:01:54.6]} 28. Qb1 {[%clk 0:01:23.2]} 28... Ne4 {[%clk 0:01:39.5]} 29. Rxe4
{[%clk 0:01:14.8]} 29... dxe4 {[%clk 0:01:37.2]} 30. Rxd8+ {[%clk 0:01:13.7]}
30... Rxd8 {[%clk 0:01:36.1]} 31. b3 {[%clk 0:01:11.4]} 31... Qc6 {[%clk
0:01:30.9]} 32. c4 {[%clk 0:01:09.8]} 32... Rd3 {[%clk 0:01:26.4]} 33. f3 {[%clk
0:01:04.7]} 33... Qd7 {[%clk 0:00:51.6]} 34. Kh2 {[%clk 0:00:57.4]} 34... exf3
{[%clk 0:00:49.5]} 35. gxf3 {[%clk 0:00:55.3]} 35... Rd2+ {[%clk 0:00:43.3]} 36.
Bf2 {[%clk 0:00:38.6]} 36... Rxf2+ {[%clk 0:00:41.3]} 37. Kg3 {[%clk 0:00:36.1]}
37... Rd2 {[%clk 0:00:36.3]} 38. Qe4 {[%clk 0:00:30.1]} 38... Qd4 {[%clk
0:00:29.1]} 39. Qxb7 {[%clk 0:00:27.9]} 39... Qg1+ {[%clk 0:00:24.9]} 0-1

[Event "Live Chess"]
[Site "Chess.com"]
[Date "2023.05.21"]
[Round "-"]
[White "FailsGambits"]
[Black "Bot_Boy"]
[Result "1-0"]
[WhiteElo "1335"]
[BlackElo "334"]
[TimeControl "300"]
[EndTime "1:54:10 PDT"]
[Termination "FailsGambits won on time"]

1. e4 {[%clk 0:04:58.8]} 1... Nc6 {[%clk 0:04:56.3]} 2. d4 {[%clk 0:04:57.3]}
2... e5 {[%clk 0:04:50.8]} 3. dxe5 {[%clk 0:04:49.6]} 3... Nxe5 {[%clk
0:04:44.8]} 4. Nc3 {[%clk 0:04:48.9]} 4... c6 {[%clk 0:04:37.6]} 5. Bf4 {[%clk
0:04:43.3]} 5... Ng6 {[%clk 0:04:23.7]} 6. Bg3 {[%clk 0:04:35.8]} 6... d6 {[%clk
0:04:15.2]} 7. Bc4 {[%clk 0:04:21.7]} 7... f6 {[%clk 0:03:56]} 8. Nf3 {[%clk
0:04:01]} 8... Ne5 {[%clk 0:03:32.6]} 9. Nxe5 {[%clk 0:03:56.9]} 9... dxe5
{[%clk 0:03:26.2]} 10. Bf7+ {[%clk 0:03:32.9]} 10... Ke7 {[%clk 0:03:19.5]} 11.
Qxd8+ {[%clk 0:03:30.7]} 11... Kxd8 {[%clk 0:03:17.8]} 12. O-O-O+ {[%clk
0:03:30]} 12... Bd7 {[%clk 0:03:15.8]} 13. Be6 {[%clk 0:03:25.6]} 13... Kc7
{[%clk 0:02:50.5]} 14. Rxd7+ {[%clk 0:03:18.3]} 14... Kb6 {[%clk 0:02:46.8]} 15.
Na4+ {[%clk 0:03:04.8]} 15... Ka6 {[%clk 0:02:28.1]} 16. f3 {[%clk 0:02:48]}
16... b5 {[%clk 0:02:08.3]} 17. Nc3 {[%clk 0:02:29.8]} 17... Bc5 {[%clk
0:01:31.5]} 18. a4 {[%clk 0:02:16.9]} 18... b4 {[%clk 0:01:13.8]} 19. Na2 {[%clk
0:01:59.4]} 19... Be3+ {[%clk 0:01:02.4]} 20. Kb1 {[%clk 0:01:52.3]} 20... Re8
{[%clk 0:00:49.1]} 21. Bc4+ {[%clk 0:01:35.7]} 21... Kb6 {[%clk 0:00:38.4]} 22.
Nxb4 {[%clk 0:01:25.2]} 22... Kc5 {[%clk 0:00:32.2]} 23. Bxg8 {[%clk 0:01:14]}
23... Rhxg8 {[%clk 0:00:30.3]} 24. Nd3+ {[%clk 0:01:09.5]} 24... Kb6 {[%clk
0:00:25.9]} 25. Re1 {[%clk 0:00:59.2]} 25... Bd4 {[%clk 0:00:21.1]} 26. c3
{[%clk 0:00:56]} 26... Bc5 {[%clk 0:00:19.4]} 27. Nxc5 {[%clk 0:00:55.4]} 27...
Kxc5 {[%clk 0:00:18.4]} 28. Rxa7 {[%clk 0:00:53.1]} 28... Rb8 {[%clk 0:00:16.4]}
29. b4+ {[%clk 0:00:45.1]} 29... Kc4 {[%clk 0:00:15.3]} 30. Rc1 {[%clk
0:00:32.7]} 30... c5 {[%clk 0:00:13.5]} 31. Rc7 {[%clk 0:00:27.2]} 31... Rgd8
{[%clk 0:00:05.9]} 32. Rxc5+ {[%clk 0:00:26]} 1-0

[Event "Live Chess"]
[Site "Chess.com"]
[Date "2023.05.21"]
[Round "-"]
[White "JoeyCage"]
[Black "raminguy"]
[Result "1-0"]
[WhiteElo "2305"]
[BlackElo "1968"]
[TimeControl "300"]
[EndTime "1:54:10 PDT"]
[Termination "JoeyCage won on time"]

1. e4 {[%clk 0:04:58]} 1... e5 {[%clk 0:04:59.1]} 2. Nf3 {[%clk 0:04:56.8]} 2...
Nc6 {[%clk 0:04:58.7]} 3. Bb5 {[%clk 0:04:55.4]} 3... Nf6 {[%clk 0:04:56.9]} 4.
O-O {[%clk 0:04:53.5]} 4... Nxe4 {[%clk 0:04:56.2]} 5. d4 {[%clk 0:04:49.9]}
5... Be7 {[%clk 0:04:54.6]} 6. dxe5 {[%clk 0:04:42.7]} 6... O-O {[%clk
0:04:51.5]} 7. c4 {[%clk 0:04:41.4]} 7... d6 {[%clk 0:04:36.2]} 8. Re1 {[%clk
0:04:35.2]} 8... Nc5 {[%clk 0:04:18.3]} 9. exd6 {[%clk 0:04:15.9]} 9... Bxd6
{[%clk 0:04:15.4]} 10. Nc3 {[%clk 0:04:13]} 10... Bg4 {[%clk 0:04:11.2]} 11.
Bxc6 {[%clk 0:04:08.6]} 11... bxc6 {[%clk 0:04:09]} 12. h3 {[%clk 0:04:06.7]}
12... Bh5 {[%clk 0:04:07.4]} 13. Be3 {[%clk 0:04:01.8]} 13... Ne6 {[%clk
0:04:00.2]} 14. Ne4 {[%clk 0:03:58.3]} 14... Re8 {[%clk 0:03:45.6]} 15. Ng3
{[%clk 0:03:39]} 15... Bg6 {[%clk 0:03:25.9]} 16. Nd4 {[%clk 0:03:36]} 16...
Nxd4 {[%clk 0:03:06.8]} 17. Qxd4 {[%clk 0:03:31]} 17... c5 {[%clk 0:02:55]} 18.
Qd2 {[%clk 0:03:28.6]} 18... Qh4 {[%clk 0:02:44]} 19. b3 {[%clk 0:03:18.4]}
19... Bxg3 {[%clk 0:02:29.4]} 20. fxg3 {[%clk 0:03:16.6]} 20... Qxg3 {[%clk
0:02:27]} 21. Bf4 {[%clk 0:03:15.1]} 21... Qh4 {[%clk 0:02:08.5]} 22. Bxc7
{[%clk 0:03:10.8]} 22... a6 {[%clk 0:01:44.8]} 23. Qf2 {[%clk 0:03:07.4]} 23...
Qg5 {[%clk 0:01:20.4]} 24. Qf4 {[%clk 0:03:00.2]} 24... Qh5 {[%clk 0:01:04.5]}
25. Bd6 {[%clk 0:02:55.4]} 25... f6 {[%clk 0:00:46.6]} 26. Qf2 {[%clk
0:02:49.3]} 26... Rec8 {[%clk 0:00:43.7]} 27. Re7 {[%clk 0:02:40.4]} 27... Bf7
{[%clk 0:00:37.8]} 28. Rae1 {[%clk 0:02:31.4]} 28... a5 {[%clk 0:00:33.4]} 29.
Rc7 {[%clk 0:02:29.2]} 29... a4 {[%clk 0:00:27.6]} 30. Rxc5 {[%clk 0:02:21]}
30... Rxc5 {[%clk 0:00:20.3]} 31. Qxc5 {[%clk 0:02:18.3]} 31... Qg6 {[%clk
0:00:18.3]} 32. Qe3 {[%clk 0:01:59.5]} 32... axb3 {[%clk 0:00:16]} 33. axb3
{[%clk 0:01:57.2]} 33... Qc2 {[%clk 0:00:14.8]} 34. Re2 {[%clk 0:01:50.3]} 34...
Qb1+ {[%clk 0:00:13]} 35. Re1 {[%clk 0:01:46.5]} 35... Qc2 {[%clk 0:00:11.3]}
36. Be7 {[%clk 0:01:20.9]} 36... Ra2 {[%clk 0:00:09.8]} 37. Qg3 {[%clk
0:01:19.3]} 37... h5 {[%clk 0:00:08.1]} 38. h4 {[%clk 0:01:17]} 38... Qd2 {[%clk
0:00:05]} 39. Rf1 {[%clk 0:01:12.4]} 39... Qd4+ {[%clk 0:00:03.9]} 40. Kh2
{[%clk 0:01:08.8]} 1-0

[Event "Live Chess"]
[Site "Chess.com"]
[Date "2023.05.21"]
[Round "-"]
[White "OleksiyJr1"]
[Black "LiamClery2020"]
[Result "0-1"]
[WhiteElo "978"]
[BlackElo "2030"]
[TimeControl "300"]
[EndTime "1:54:28 PDT"]
[Termination "LiamClery2020 won by checkmate"]

1. e4 {[%clk 0:04:57.9]} 1... Nf6 {[%clk 0:04:59.9]} 2. Nc3 {[%clk 0:04:55.9]}
2... e5 {[%clk 0:04:58]} 3. Nf3 {[%clk 0:04:55.5]} 3... Nc6 {[%clk 0:04:57]} 4.
Bc4 {[%clk 0:04:53.7]} 4... Nxe4 {[%clk 0:04:56.5]} 5. Nxe4 {[%clk 0:04:51.8]}
5... d5 {[%clk 0:04:55.9]} 6. Bxd5 {[%clk 0:04:51.7]} 6... Qxd5 {[%clk
0:04:55.5]} 7. Nc3 {[%clk 0:04:51]} 7... Qa5 {[%clk 0:04:55.1]} 8. d3 {[%clk
0:04:49.6]} 8... Bg4 {[%clk 0:04:53.6]} 9. O-O {[%clk 0:04:48.2]} 9... Nd4
{[%clk 0:04:51.4]} 10. h3 {[%clk 0:04:41.9]} 10... Nxf3+ {[%clk 0:04:49.4]} 11.
gxf3 {[%clk 0:04:41.8]} 11... Bxh3 {[%clk 0:04:48.8]} 12. d4 {[%clk 0:04:27.2]}
12... Qa6 {[%clk 0:04:45.7]} 13. dxe5 {[%clk 0:04:25]} 13... Qg6+ {[%clk
0:04:44.4]} 14. Kh2 {[%clk 0:04:22.7]} 14... Qg2# {[%clk 0:04:44.3]} 0-1

[Event "Live Chess"]
[Site "Chess.com"]
[Date "2023.05.21"]
[Round "-"]
[White "MarkLim1"]
[Black "Hacker_2009"]
[Result "0-1"]
[WhiteElo "1722"]
[BlackElo "1912"]
[TimeControl "300"]
[EndTime "1:54:41 PDT"]
[Termination "Hacker_2009 won by resignation"]

1. d4 {[%clk 0:04:58.9]} 1... Nf6 {[%clk 0:04:58.4]} 2. Nf3 {[%clk 0:04:58.3]}
2... e6 {[%clk 0:04:56]} 3. e3 {[%clk 0:04:56.6]} 3... d5 {[%clk 0:04:55.2]} 4.
Bd3 {[%clk 0:04:55.5]} 4... c5 {[%clk 0:04:54.4]} 5. b3 {[%clk 0:04:53.7]} 5...
b6 {[%clk 0:04:53.6]} 6. Bb2 {[%clk 0:04:53]} 6... Bb7 {[%clk 0:04:52.3]} 7. O-O
{[%clk 0:04:51]} 7... Nc6 {[%clk 0:04:50.9]} 8. Ne5 {[%clk 0:04:47.4]} 8... Rc8
{[%clk 0:04:48.4]} 9. Nd2 {[%clk 0:04:46]} 9... Be7 {[%clk 0:04:46.7]} 10. f4
{[%clk 0:04:44.4]} 10... O-O {[%clk 0:04:46.1]} 11. Qf3 {[%clk 0:04:42.3]} 11...
cxd4 {[%clk 0:04:44.6]} 12. exd4 {[%clk 0:04:40.6]} 12... Nb4 {[%clk 0:04:43.9]}
13. c4 {[%clk 0:04:33.7]} 13... Nxd3 {[%clk 0:04:40.9]} 14. Qxd3 {[%clk
0:04:32.7]} 14... dxc4 {[%clk 0:04:40.3]} 15. bxc4 {[%clk 0:04:31.2]} 15... Qc7
{[%clk 0:04:23.9]} 16. a4 {[%clk 0:04:29.5]} 16... Rfd8 {[%clk 0:04:21.2]} 17.
a5 {[%clk 0:04:25.5]} 17... bxa5 {[%clk 0:04:17.7]} 18. Bc3 {[%clk 0:04:23.8]}
18... Bb4 {[%clk 0:04:15]} 19. Bxb4 {[%clk 0:04:20.8]} 19... axb4 {[%clk
0:04:14.2]} 20. Rxa7 {[%clk 0:04:18.9]} 20... Qb6 {[%clk 0:04:07.5]} 21. Rxb7
{[%clk 0:03:58]} 21... Qxb7 {[%clk 0:04:02.4]} 22. f5 {[%clk 0:03:48.9]} 22...
exf5 {[%clk 0:03:51.9]} 23. Rxf5 {[%clk 0:03:46.8]} 23... Rb8 {[%clk 0:03:17.5]}
24. Nb3 {[%clk 0:03:32.3]} 24... Qa7 {[%clk 0:02:43.1]} 25. Nc6 {[%clk
0:03:27.4]} 25... Qd7 {[%clk 0:02:32.4]} 26. Nxb8 {[%clk 0:03:06.1]} 26... Rxb8
{[%clk 0:02:30]} 27. Re5 {[%clk 0:02:45]} 27... Rd8 {[%clk 0:02:23.9]} 28. h3
{[%clk 0:02:42.7]} 28... Qd6 {[%clk 0:02:18.9]} 29. Re1 {[%clk 0:02:28.2]} 29...
h6 {[%clk 0:02:15.8]} 30. d5 {[%clk 0:02:25.2]} 30... Ra8 {[%clk 0:02:07.5]} 31.
Rd1 {[%clk 0:02:04.4]} 31... Rd8 {[%clk 0:01:58.4]} 32. Nd4 {[%clk 0:01:58.1]}
32... Qc5 {[%clk 0:01:55.4]} 33. Kh1 {[%clk 0:01:55.5]} 33... Nd7 {[%clk
0:01:45.1]} 34. Nb3 {[%clk 0:01:48]} 34... Qf2 {[%clk 0:01:40.9]} 35. c5 {[%clk
0:01:39.7]} 35... Nxc5 {[%clk 0:01:37]} 36. Nxc5 {[%clk 0:01:37.3]} 36... Qxc5
{[%clk 0:01:35.2]} 37. Rb1 {[%clk 0:01:28.9]} 37... Rxd5 {[%clk 0:01:30]} 38.
Qa6 {[%clk 0:01:21.1]} 38... Qd6 {[%clk 0:01:25]} 39. Qc8+ {[%clk 0:01:15.3]}
39... Kh7 {[%clk 0:01:21.8]} 40. Qc2+ {[%clk 0:01:13.6]} 40... g6 {[%clk
0:01:19.7]} 41. Qe4 {[%clk 0:01:09]} 41... Rd1+ {[%clk 0:01:17.6]} 42. Rxd1
{[%clk 0:01:06.5]} 42... Qxd1+ {[%clk 0:01:16.6]} 43. Kh2 {[%clk 0:01:05.8]}
43... Qb3 {[%clk 0:01:01.9]} 0-1

[Event "Live Chess"]
[Site "Chess.com"]
[Date "2023.05.21"]
[Round "-"]
[White "1PRK1"]
[Black "MJMykh"]
[Result "0-1"]
[WhiteElo "1345"]
[BlackElo "1133"]
[TimeControl "300"]
[EndTime "1:54:56 PDT"]
[Termination "MJMykh won on time"]

1. e4 {[%clk 0:04:57.5]} 1... e5 {[%clk 0:04:58.7]} 2. Nf3 {[%clk 0:04:52.5]}
2... Nc6 {[%clk 0:04:57]} 3. Bb5 {[%clk 0:04:51]} 3... d6 {[%clk 0:04:54.9]} 4.
h3 {[%clk 0:04:47.2]} 4... Nf6 {[%clk 0:04:53.1]} 5. d3 {[%clk 0:04:45.8]} 5...
Bd7 {[%clk 0:04:52.3]} 6. O-O {[%clk 0:04:42.8]} 6... h6 {[%clk 0:04:51.7]} 7.
c3 {[%clk 0:04:41.8]} 7... Be7 {[%clk 0:04:50.9]} 8. Nbd2 {[%clk 0:04:39.7]}
8... O-O {[%clk 0:04:50.1]} 9. Re1 {[%clk 0:04:39]} 9... a6 {[%clk 0:04:49.5]}
10. Ba4 {[%clk 0:04:36.6]} 10... Na7 {[%clk 0:04:48.5]} 11. Nf1 {[%clk
0:04:32.6]} 11... Bxa4 {[%clk 0:04:47.1]} 12. Qxa4 {[%clk 0:04:31.1]} 12... Nc6
{[%clk 0:04:46.6]} 13. d4 {[%clk 0:04:25.1]} 13... exd4 {[%clk 0:04:44.4]} 14.
cxd4 {[%clk 0:04:23.5]} 14... b5 {[%clk 0:04:39.9]} 15. Qc2 {[%clk 0:04:18.8]}
15... d5 {[%clk 0:04:34.4]} 16. Qxc6 {[%clk 0:04:16.6]} 16... dxe4 {[%clk
0:04:32.3]} 17. Ne5 {[%clk 0:03:59.8]} 17... Bb4 {[%clk 0:04:27.1]} 18. Rd1
{[%clk 0:03:45.7]} 18... Re8 {[%clk 0:04:17.8]} 19. a3 {[%clk 0:03:43.7]} 19...
Ba5 {[%clk 0:04:15.6]} 20. Ne3 {[%clk 0:03:27.6]} 20... Bb6 {[%clk 0:04:04.5]}
21. Nd5 {[%clk 0:03:05.4]} 21... Qxd5 {[%clk 0:03:47.3]} 22. Qxd5 {[%clk
0:03:01.3]} 22... Nxd5 {[%clk 0:03:45.7]} 23. Bf4 {[%clk 0:02:57.3]} 23... Nf6
{[%clk 0:03:39.2]} 24. Rac1 {[%clk 0:02:45.6]} 24... Rad8 {[%clk 0:03:26.8]} 25.
Nc6 {[%clk 0:02:38.1]} 25... Rc8 {[%clk 0:03:15.4]} 26. d5 {[%clk 0:02:21.5]}
26... Kh7 {[%clk 0:03:01.9]} 27. Nb4 {[%clk 0:02:15.3]} 27... a5 {[%clk
0:02:54]} 28. Nc6 {[%clk 0:02:13.8]} 28... Kg6 {[%clk 0:02:48]} 29. Ne5+ {[%clk
0:02:08.8]} 29... Kf5 {[%clk 0:02:45.1]} 30. g3 {[%clk 0:02:00.1]} 30... Rf8
{[%clk 0:02:34.9]} 31. Rc6 {[%clk 0:01:44.5]} 31... Rcd8 {[%clk 0:02:22.3]} 32.
d6 {[%clk 0:01:25]} 32... g6 {[%clk 0:01:46.9]} 33. Kg2 {[%clk 0:01:13.2]} 33...
Ba7 {[%clk 0:01:32.5]} 34. Rxc7 {[%clk 0:01:07.9]} 34... Bb8 {[%clk 0:01:25]}
35. Rc6 {[%clk 0:00:57.7]} 35... a4 {[%clk 0:01:21]} 36. f3 {[%clk 0:00:51.6]}
36... exf3+ {[%clk 0:01:17.5]} 37. Kxf3 {[%clk 0:00:50.7]} 37... Ke6 {[%clk
0:01:12.8]} 38. d7+ {[%clk 0:00:46]} 38... Ke7 {[%clk 0:01:08.4]} 39. Re1 {[%clk
0:00:39]} 39... Bxe5 {[%clk 0:00:50.4]} 40. Rxe5+ {[%clk 0:00:34.9]} 40... Kxd7
{[%clk 0:00:49]} 41. Rxf6 {[%clk 0:00:33.6]} 41... Kc8 {[%clk 0:00:39.3]} 42.
Rc5+ {[%clk 0:00:28.9]} 42... Kd7 {[%clk 0:00:37]} 43. Rc7+ {[%clk 0:00:27.9]}
43... Ke8 {[%clk 0:00:35.4]} 44. Rb7 {[%clk 0:00:23.5]} 44... g5 {[%clk
0:00:30.3]} 45. Be5 {[%clk 0:00:20.6]} 45... Rd3+ {[%clk 0:00:27.6]} 46. Ke4
{[%clk 0:00:19.4]} 46... Rd8 {[%clk 0:00:24.7]} 47. Rxb5 {[%clk 0:00:18]} 47...
h5 {[%clk 0:00:22]} 48. Ra5 {[%clk 0:00:15.4]} 48... h4 {[%clk 0:00:19.1]} 49.
g4 {[%clk 0:00:13.2]} 49... Rg8 {[%clk 0:00:17.4]} 50. Rxa4 {[%clk 0:00:11.8]}
50... Rf8 {[%clk 0:00:16.7]} 51. Ra7 {[%clk 0:00:10.2]} 51... Rg8 {[%clk
0:00:16]} 52. Rc7 {[%clk 0:00:08.9]} 52... Rf8 {[%clk 0:00:15]} 53. Kf5 {[%clk
0:00:05.7]} 53... Ra8 {[%clk 0:00:14.2]} 54. Kxg5 {[%clk 0:00:04.5]} 54... Rd8
{[%clk 0:00:13.5]} 55. Kxh4 {[%clk 0:00:03.7]} 55... Ra8 {[%clk 0:00:12.9]} 56.
Kg5 {[%clk 0:00:03.4]} 56... Rd8 {[%clk 0:00:11.9]} 57. Kh6 {[%clk 0:00:02.6]}
57... Rh8+ {[%clk 0:00:10.8]} 58. Kg5 {[%clk 0:00:01.8]} 58... Rg8+ {[%clk
0:00:09.8]} 59. Kf5 {[%clk 0:00:00.6]} 59... Rf8 {[%clk 0:00:09]} 60. Kf4 {[%clk
0:00:00.2]} 60... Rg8 {[%clk 0:00:08.1]} 0-1

[Event "Live Chess"]
[Site "Chess.com"]
[Date "2023.05.21"]
[Round "-"]
[White "jagbama"]
[Black "PrinceCharming_1"]
[Result "0-1"]
[WhiteElo "1163"]
[BlackElo "1615"]
[TimeControl "300"]
[EndTime "1:55:05 PDT"]
[Termination "PrinceCharming_1 won by resignation"]

1. e4 {[%clk 0:04:57.1]} 1... e5 {[%clk 0:04:59.3]} 2. Nf3 {[%clk 0:04:56.8]}
2... Nc6 {[%clk 0:04:58.8]} 3. Bb5 {[%clk 0:04:55.2]} 3... Nf6 {[%clk 0:04:58]}
4. Bxc6 {[%clk 0:04:52.6]} 4... dxc6 {[%clk 0:04:57.4]} 5. Nxe5 {[%clk
0:04:48.2]} 5... Qd4 {[%clk 0:04:56.2]} 6. Nf3 {[%clk 0:04:46.5]} 6... Qxe4+
{[%clk 0:04:55.4]} 7. Qe2 {[%clk 0:04:45.5]} 7... Qxe2+ {[%clk 0:04:54.5]} 8.
Kxe2 {[%clk 0:04:45.1]} 8... Bd6 {[%clk 0:04:53.6]} 9. g3 {[%clk 0:04:39]} 9...
Bg4 {[%clk 0:04:51.9]} 10. Re1 {[%clk 0:04:34.9]} 10... O-O {[%clk 0:04:51]} 11.
d3 {[%clk 0:04:29.9]} 11... Rfe8+ {[%clk 0:04:50.2]} 12. Kf1 {[%clk 0:04:28.6]}
12... Bxf3 {[%clk 0:04:49.5]} 13. Rxe8+ {[%clk 0:04:27.2]} 13... Rxe8 {[%clk
0:04:49.4]} 14. Be3 {[%clk 0:04:22.4]} 14... Ng4 {[%clk 0:04:47.7]} 15. Kg1
{[%clk 0:04:18.6]} 15... Nxe3 {[%clk 0:04:45.6]} 16. fxe3 {[%clk 0:04:18]} 16...
Rxe3 {[%clk 0:04:45.3]} 17. Nd2 {[%clk 0:04:17]} 17... Bh5 {[%clk 0:04:39.1]}
18. Kf2 {[%clk 0:04:13.6]} 18... Re2+ {[%clk 0:04:32.9]} 19. Kf1 {[%clk
0:04:09]} 19... Rxd2 {[%clk 0:04:32.4]} 20. Re1 {[%clk 0:04:08.5]} 20... g6
{[%clk 0:04:29.3]} 0-1